bitfinex/quotes_SOLUSD_20240713
["timestamp","ask_amount","ask_price","bid_price","bid_amount"]
[1720847297158,36.6814,138.85,138.79,11.64]
[1720847297358,11.64,138.84,138.79,11.64]
[1720847298697,31.64,138.85,138.79,11.64]
[1720847298977,31.64,138.85,138.8,11.64]
[1720847299579,36.6814,138.85,138.8,11.64]
[1720847299765,11.64,138.84,138.79,11.64]
[1720847300461,11.64,138.83,138.78,11.64]
[1720847300661,11.64,138.83,138.76,6.2378]
[1720847300881,11.64,138.83,138.77,11.64]
[1720847302065,11.64,138.81,138.76,6.2378]
[1720847302262,11.64,138.81,138.76,17.8778]
[1720847302973,11.64,138.81,138.76,11.64]
[1720847307581,11.64,138.82,138.77,11.64]
[1720847308205,11.64,138.83,138.77,11.64]
[1720847308500,11.64,138.83,138.78,11.64]
[1720847309109,11.64,138.84,138.79,11.64]
[1720847309304,20.0,138.83,138.79,11.64]
[1720847309596,11.64,138.83,138.78,11.64]
[1720847315388,11.64,138.81,138.76,11.64]
[1720847316897,16.6827,138.82,138.76,11.64]
[1720847318109,35.4747,138.85,138.77,11.64]
[1720847318312,16.6822,138.83,138.78,11.64]
[1720847318513,20.0,138.82,138.78,11.64]
[1720847319801,20.0,138.82,138.77,11.64]
[1720847320504,36.6825,138.82,138.77,11.64]
[1720847320892,11.64,138.81,138.76,11.64]
[1720847321312,25.0425,138.82,138.76,11.64]
[1720847321492,36.6825,138.82,138.77,11.64]
[1720847321693,36.6825,138.82,138.75,16.3789]
[1720847321899,36.6825,138.82,138.77,11.64]
[1720847322101,31.64,138.82,138.77,11.64]
[1720847322603,20.0,138.82,138.78,11.64]
[1720847324100,36.6825,138.82,138.77,11.64]
[1720847324296,25.0425,138.82,138.77,11.64]
[1720847324516,36.6825,138.82,138.77,11.64]
[1720847325891,31.64,138.82,138.77,11.64]
[1720847327819,36.6825,138.82,138.75,16.3789]
[1720847327998,36.6825,138.82,138.77,11.64]
[1720847328606,16.6829,138.81,138.75,16.3789]
[1720847328805,11.64,138.8,138.75,28.0189]
[1720847330629,11.64,138.79,138.73,6.5269]
[1720847330920,11.64,138.79,138.74,11.64]
[1720847331318,11.64,138.79,138.73,6.5269]
[1720847331496,11.64,138.79,138.74,11.64]
[1720847331903,11.64,138.79,138.73,6.5269]
[1720847332321,16.6836,138.79,138.74,11.64]
[1720847332706,11.64,138.79,138.74,11.64]
[1720847332907,11.64,138.78,138.73,6.5269]
[1720847333107,20.0,138.78,138.74,11.64]
[1720847333904,20.0,138.78,138.73,6.5269]
[1720847334110,31.64,138.78,138.73,18.1669]
[1720847334326,20.0,138.78,138.74,11.64]
[1720847334825,20.0,138.78,138.73,6.5269]
[1720847335130,20.0,138.78,138.74,11.64]
[1720847338107,31.64,138.79,138.74,11.64]
[1720847339930,20.0,138.79,138.75,11.64]
[1720847340928,25.0437,138.79,138.75,11.64]
[1720847342129,5.0439,138.78,138.74,11.64]
[1720847346824,20.0,138.79,138.75,11.64]
[1720847347023,11.64,138.8,138.75,11.64]
[1720847347321,20.0,138.79,138.75,11.64]
[1720847347532,20.0,138.79,138.76,11.64]
[1720847347837,20.0,138.79,138.73,1.12896946]
[1720847348010,20.0,138.79,138.75,11.64]
[1720847348214,25.0436,138.79,138.75,11.64]
[1720847352139,5.0439,138.78,138.75,11.64]
[1720847361222,5.0439,138.78,138.73,45.0]
[1720847361223,5.0435,138.8,138.76,11.64]
[1720847361533,5.0435,138.8,138.77,11.64]
[1720847362329,5.0429,138.81,138.77,11.64]
[1720847362534,5.0425,138.82,138.79,11.64]
[1720847363056,5.0422,138.83,138.79,11.64]
[1720847363836,5.0425,138.82,138.79,11.64]
[1720847364038,5.0425,138.82,138.8,11.64]
[1720847364238,5.0422,138.83,138.8,11.64]
[1720847365430,20.0,138.82,138.8,11.64]
[1720847366732,20.0,138.84,138.8,11.64]
[1720847366927,10.0,138.88,138.81,11.64]
[1720847367133,11.64,138.87,138.82,11.64]
[1720847367353,11.64,138.87,138.81,11.64]
[1720847367857,5.042,138.84,138.81,11.64]
[1720847368756,5.0421,138.83,138.81,11.64]
[1720847369450,5.0418,138.84,138.81,11.64]
[1720847371649,5.0414,138.85,138.81,11.64]
[1720847371851,20.0,138.84,138.82,11.64]
[1720847373460,25.0418,138.84,138.82,11.64]
[1720847373642,25.0418,138.84,138.81,11.64]
[1720847374458,25.0418,138.84,138.8,15.6784]
[1720847374459,5.0422,138.83,138.77,6.1304]
[1720847374643,5.0422,138.83,138.8,11.64]
[1720847375134,25.0418,138.84,138.8,11.64]
[1720847375659,20.0,138.84,138.81,11.64]
[1720847377343,20.0,138.84,138.82,11.64]
[1720847378551,25.0417,138.84,138.82,11.64]
[1720847380457,5.0421,138.83,138.81,11.64]
[1720847382483,20.0,138.84,138.81,11.64]
[1720847382685,20.0,138.84,138.82,11.64]
[1720847383184,25.0418,138.84,138.82,11.64]
[1720847383370,25.0418,138.84,138.81,11.64]
[1720847383570,5.0423,138.83,138.77,6.1304]
[1720847383763,20.0,138.84,138.81,11.64]
[1720847383764,25.0419,138.84,138.81,11.64]
[1720847385276,20.0,138.84,138.81,11.64]
[1720847385675,20.0,138.84,138.82,11.64]
[1720847386992,25.0417,138.84,138.77,6.1304]
[1720847387180,20.0,138.84,138.81,11.64]
[1720847387869,20.0,138.84,138.82,11.64]
[1720847388276,20.0,138.84,138.81,11.64]
[1720847388694,25.0418,138.84,138.81,11.64]
[1720847391072,25.0418,138.84,138.77,6.1304]
[1720847391277,25.0418,138.84,138.8,11.64]
[1720847393490,25.0418,138.84,138.77,6.1304]
[1720847393692,25.0418,138.84,138.8,11.64]
[1720847393999,25.0418,138.84,138.79,11.64]
[1720847394495,20.0,138.84,138.79,11.64]
[1720847394694,20.0,138.84,138.8,11.64]
[1720847398494,25.0418,138.84,138.8,11.64]
[1720847400400,25.0418,138.84,138.79,11.64]
[1720847401077,20.0,138.84,138.79,11.64]
[1720847401280,20.0,138.84,138.8,11.64]
[1720847402792,25.0418,138.84,138.8,11.64]
[1720847405899,20.0,138.84,138.8,11.64]
[1720847406607,25.0418,138.84,138.8,11.64]
[1720847407582,5.0422,138.83,138.77,1.44088322]
[1720847407811,5.0422,138.83,138.8,11.64]
[1720847407997,20.0,138.82,138.76,15.6784]
[1720847408302,20.0,138.82,138.78,11.64]
[1720847408681,20.0,138.82,138.74,6.5183]
[1720847408889,31.64,138.82,138.76,11.64]
[1720847409087,5.043,138.81,138.76,11.64]
[1720847409696,16.683,138.81,138.76,11.64]
[1720847410096,16.683,138.81,138.72,61.8223]
[1720847410292,11.64,138.8,138.73,65.0]
[1720847410494,11.64,138.8,138.75,11.64]
[1720847411209,16.683,138.81,138.76,11.64]
[1720847412304,16.683,138.81,138.73,65.0]
[1720847412913,20.0,138.8,138.76,11.64]
[1720847413288,25.0433,138.8,138.72,15.2623]
[1720847413501,11.64,138.79,138.72,15.2623]
[1720847413701,11.64,138.79,138.74,11.64]
[1720847413899,20.0,138.78,138.74,11.64]
[1720847414217,20.0,138.78,138.75,11.64]
[1720847414525,20.0,138.79,138.75,11.64]
[1720847415889,25.0436,138.79,138.75,11.64]
[1720847416290,25.0436,138.79,138.76,11.64]
[1720847416291,20.0,138.79,138.76,11.64]
[1720847416498,20.0,138.8,138.76,11.64]
[1720847417798,20.0,138.8,138.72,15.2623]
[1720847417997,20.0,138.8,138.76,11.64]
[1720847418300,25.0432,138.8,138.73,45.0]
[1720847418502,36.6832,138.8,138.75,11.64]
[1720847419400,25.0432,138.8,138.76,11.64]
[1720847419598,20.0,138.8,138.76,11.64]
[1720847419908,36.6834,138.8,138.73,45.0]
[1720847420108,36.6834,138.8,138.75,11.64]
[1720847420421,5.0436,138.79,138.75,11.64]
[1720847420923,20.0,138.78,138.74,11.64]
[1720847425511,20.0,138.78,138.72,15.2623]
[1720847425823,20.0,138.78,138.74,11.64]
[1720847430707,20.0,138.78,138.75,11.64]
[1720847431035,20.0,138.79,138.75,11.64]
[1720847431217,25.0436,138.79,138.75,11.64]
[1720847431401,36.6836,138.79,138.74,11.64]
[1720847432206,36.6836,138.79,138.72,15.2623]
[1720847432207,5.044,138.78,138.72,15.2623]
[1720847432528,36.6836,138.79,138.74,11.64]
[1720847433735,36.6836,138.79,138.72,15.2623]
[1720847433904,36.6836,138.79,138.74,11.64]
[1720847436249,36.6836,138.79,138.72,15.2623]
[1720847436745,36.6836,138.79,138.74,11.64]
[1720847440151,5.0441,138.78,138.71,6.2708]
[1720847440332,16.6839,138.78,138.73,11.64]
[1720847440537,5.0439,138.78,138.73,11.64]
[1720847441447,36.6837,138.79,138.73,11.64]
[1720847441952,16.6839,138.78,138.73,11.64]
[1720847443838,11.64,138.78,138.73,11.64]
[1720847444042,16.6849,138.76,138.69,15.1276]
[1720847444237,16.685,138.75,138.7,11.64]
[1720847444439,20.0,138.74,138.67,6.6406]
[1720847444642,11.64,138.73,138.63,22.0202]
[1720847444846,11.64,138.73,138.68,11.64]
[1720847445043,16.686,138.73,138.68,11.64]
[1720847445836,5.046,138.73,138.64,46.56]
[1720847446041,16.686,138.73,138.68,11.64]
[1720847446556,16.686,138.73,138.65,20.0]
[1720847446754,16.686,138.73,138.68,11.64]
[1720847447934,16.686,138.73,138.65,20.0]
[1720847448138,32.0625,138.72,138.63,22.0202]
[1720847448481,20.0,138.71,138.66,11.64]
[1720847449157,25.0468,138.71,138.66,11.64]
[1720847449333,16.6869,138.7,138.6,15.1865]
[1720847449542,16.6869,138.7,138.65,11.64]
[1720847449854,16.6869,138.7,138.64,11.64]
[1720847450058,16.6869,138.7,138.65,11.64]
[1720847450433,16.6869,138.7,138.6,15.1865]
[1720847450637,16.6869,138.7,138.65,11.64]
[1720847452260,5.0469,138.7,138.65,11.64]
[1720847452873,16.6869,138.7,138.65,11.64]
[1720847456861,5.0472,138.69,138.65,11.64]
[1720847457162,16.6872,138.69,138.61,45.0]
[1720847457344,16.6872,138.69,138.64,11.64]
[1720847458741,16.6872,138.69,138.61,45.0]
[1720847458946,16.6872,138.69,138.62,20.0]
[1720847459153,16.6872,138.69,138.64,11.64]
[1720847459554,5.047,138.7,138.64,11.64]
[1720847459768,11.64,138.69,138.64,11.64]
[1720847460069,16.687,138.7,138.65,11.64]
[1720847460263,5.047,138.7,138.65,11.64]
[1720847460651,16.687,138.7,138.65,11.64]
[1720847461364,11.64,138.69,138.64,11.64]
[1720847464875,16.687,138.7,138.64,11.64]
[1720847467079,20.0,138.71,138.65,0.64865441]
[1720847467255,15.3763,138.72,138.64,17.9157]
[1720847467458,15.3763,138.72,138.69,11.64]
[1720847469676,5.0457,138.73,138.69,11.64]
[1720847469863,20.0,138.72,138.68,11.64]
[1720847470064,25.0462,138.72,138.68,11.64]
[1720847471658,20.0,138.72,138.68,11.64]
[1720847472384,20.0,138.72,138.65,45.0]
[1720847472560,20.0,138.72,138.69,11.64]
[1720847473179,20.0,138.72,138.68,11.64]
[1720847473482,25.0462,138.72,138.68,11.64]
[1720847476868,20.0,138.72,138.68,11.64]
[1720847477477,25.0458,138.73,138.68,11.64]
[1720847477679,25.0458,138.73,138.69,11.64]
[1720847482469,5.0461,138.72,138.69,11.64]
[1720847482679,25.046,138.73,138.69,11.64]
[1720847483184,20.0,138.73,138.69,11.64]
[1720847483868,25.0458,138.73,138.69,11.64]
[1720847490073,5.0463,138.72,138.65,45.0]
[1720847490278,5.0463,138.72,138.68,11.64]
[1720847490494,25.0465,138.71,138.65,45.0]
[1720847490687,5.0465,138.71,138.67,11.64]
[1720847491595,5.0462,138.72,138.67,11.64]
[1720847491802,20.0,138.71,138.67,11.64]
[1720847503106,20.0,138.71,138.66,11.64]
[1720847504002,20.0,138.71,138.67,11.64]
[1720847504595,31.64,138.72,138.67,11.64]
[1720847504795,20.0,138.72,138.67,11.64]
[1720847504992,20.0,138.72,138.68,11.64]
[1720847506005,20.0,138.72,138.65,45.0]
[1720847506309,25.0462,138.72,138.67,11.64]
[1720847506490,36.6862,138.72,138.67,11.64]
[1720847506806,36.6862,138.72,138.66,11.64]
[1720847507010,36.6862,138.72,138.66,12.31314049]
[1720847507311,36.6862,138.72,138.67,11.64]
[1720847507494,25.0462,138.72,138.67,11.64]
[1720847507809,36.6862,138.72,138.67,11.64]
[1720847509091,5.0465,138.71,138.67,11.64]
[1720847513216,20.0,138.72,138.67,11.64]
[1720847513410,20.0,138.72,138.68,12.90453445]
[1720847513620,25.0459,138.73,138.68,12.90453445]
[1720847514204,25.0458,138.73,138.69,11.64]
[1720847514398,25.0458,138.73,138.66,1.26453445]
[1720847514589,25.0458,138.73,138.69,11.64]
[1720847514795,5.0461,138.72,138.68,11.64]
[1720847514990,5.0466,138.71,138.68,11.64]
[1720847515306,5.0462,138.72,138.68,11.64]
[1720847516116,5.0462,138.72,138.69,11.64]
[1720847516615,5.0462,138.72,138.68,11.64]
[1720847516996,5.0462,138.72,138.69,11.64]
[1720847517517,5.0462,138.72,138.68,11.64]
[1720847518614,5.0462,138.72,138.69,11.64]
[1720847519011,5.0454,138.74,138.7,11.64]
[1720847520524,20.8483,138.75,138.71,11.64]
[1720847520722,20.0,138.74,138.72,11.64]
[1720847520912,5.0447,138.76,138.72,11.64]
[1720847521600,5.0444,138.77,138.73,11.64]
[1720847522509,25.0447,138.76,138.73,11.64]
[1720847523412,5.045,138.75,138.72,11.64]
[1720847523921,5.045,138.75,138.71,11.64]
[1720847525011,36.6847,138.76,138.71,11.64]
[1720847526415,25.0447,138.76,138.72,11.64]
[1720847528104,25.0447,138.76,138.73,11.64]
[1720847528638,20.0,138.76,138.73,11.64]
[1720847529439,20.0,138.76,138.72,11.64]
[1720847536426,20.0,138.76,138.68,22.8207]
[1720847536628,20.0,138.76,138.69,45.0]
[1720847536806,5.045,138.75,138.71,11.64]
[1720847537011,5.045,138.75,138.69,45.0]
[1720847537012,16.685,138.75,138.69,45.0]
[1720847537213,16.685,138.75,138.7,11.64]
[1720847537733,11.64,138.75,138.7,11.64]
[1720847538121,16.6853,138.75,138.68,16.1771]
[1720847538335,31.64,138.74,138.65,6.536]
[1720847538517,11.64,138.73,138.64,15.8351]
[1720847538719,31.64,138.72,138.66,11.64]
[1720847538930,11.64,138.72,138.66,11.64]
[1720847539311,16.6861,138.72,138.66,11.64]
[1720847540123,5.0458,138.73,138.67,11.64]
[1720847540329,31.64,138.72,138.67,11.64]
[1720847540717,20.0,138.72,138.69,11.64]
[1720847540916,20.0,138.73,138.69,11.64]
[1720847543534,20.0,138.73,138.7,11.64]
[1720847544116,20.0,138.73,138.71,11.64]
[1720847544828,20.0,138.73,138.7,11.64]
[1720847545648,25.0458,138.73,138.7,11.64]
[1720847545833,5.0461,138.72,138.69,11.64]
[1720847548551,5.0461,138.72,138.64,15.8351]
[1720847548721,5.0461,138.72,138.68,11.64]
[1720847550548,36.6859,138.73,138.68,11.64]
[1720847552143,25.0459,138.73,138.69,11.64]
[1720847559447,5.0462,138.72,138.69,11.64]
[1720847560147,5.0462,138.72,138.68,11.64]
[1720847560544,5.0465,138.71,138.65,45.0]
[1720847560737,5.0465,138.71,138.67,11.64]
[1720847563044,5.0465,138.71,138.65,45.0]
[1720847563229,5.0465,138.71,138.67,11.64]
[1720847563425,6.0366,138.72,138.64,15.8351]
[1720847563631,5.0469,138.7,138.62,6.536]
[1720847563830,5.0469,138.7,138.66,11.64]
[1720847565469,16.6866,138.71,138.66,11.64]
[1720847566344,5.0468,138.7,138.63,45.0]
[1720847566549,5.0468,138.7,138.65,11.64]
[1720847566751,11.64,138.69,138.64,11.64]
[1720847568157,5.0472,138.69,138.64,11.64]
[1720847568759,16.6872,138.69,138.64,11.64]
[1720847571951,16.6872,138.69,138.61,15.443]
[1720847572155,31.64,138.68,138.63,11.64]
[1720847573141,20.0,138.68,138.63,11.64]
[1720847573770,20.0,138.68,138.64,11.64]
[1720847574264,20.0,138.68,138.61,15.443]
[1720847574445,20.0,138.68,138.63,11.64]
[1720847574762,31.64,138.68,138.63,11.64]
[1720847576860,20.0,138.68,138.63,11.64]
[1720847577571,31.64,138.68,138.63,11.64]
[1720847577944,11.64,138.68,138.63,11.64]
[1720847582268,5.0472,138.69,138.63,11.64]
[1720847582449,31.64,138.68,138.63,11.64]
[1720847583952,20.0,138.68,138.64,11.64]
[1720847584154,5.0469,138.7,138.65,11.64]
[1720847584369,31.8407,138.71,138.66,11.64]
[1720847584574,25.0469,138.7,138.66,11.64]
[1720847585843,20.2006,138.71,138.66,11.64]
[1720847586456,20.2006,138.71,138.67,11.64]
[1720847587167,20.0,138.7,138.67,11.64]
[1720847587477,15.1541,138.71,138.68,11.64]
[1720847587782,5.046,138.73,138.68,11.64]
[1720847588276,5.046,138.73,138.69,11.64]
[1720847588849,20.0,138.72,138.69,11.64]
[1720847589376,25.0461,138.72,138.69,11.64]
[1720847590965,5.0461,138.72,138.69,11.64]
[1720847591954,5.0461,138.72,138.68,11.64]
[1720847593156,5.0465,138.71,138.68,11.64]
[1720847594072,5.0465,138.71,138.67,11.64]
[1720847594855,5.0465,138.71,138.62,6.1257]
[1720847595055,5.0465,138.71,138.67,11.64]
[1720847595255,5.0465,138.71,138.63,65.0]
[1720847595483,5.0465,138.71,138.67,11.64]
[1720847595656,16.6865,138.71,138.66,11.64]
[1720847596555,5.0473,138.69,138.62,6.1257]
[1720847596759,5.0473,138.69,138.65,11.64]
[1720847596960,5.0473,138.69,138.62,6.1257]
[1720847597161,5.0473,138.69,138.65,11.64]
[1720847599682,36.687,138.7,138.65,11.64]
[1720847600986,11.64,138.69,138.61,15.443]
[1720847601164,25.0476,138.68,138.64,11.64]
[1720847602165,20.0,138.68,138.64,11.64]
[1720847602871,20.0,138.68,138.65,11.64]
[1720847603487,20.0,138.68,138.66,11.64]
[1720847603792,20.0,138.69,138.66,11.64]
[1720847604284,20.0,138.69,138.67,11.64]
[1720847605369,16.1874,138.7,138.67,11.64]
[1720847605573,21.2342,138.7,138.67,11.64]
[1720847605875,16.1874,138.7,138.67,11.64]
[1720847606985,20.0,138.69,138.67,11.64]
[1720847614796,5.0469,138.7,138.67,11.64]
[1720847615090,20.0,138.69,138.67,11.64]
[1720847615973,5.0469,138.7,138.67,11.64]
[1720847618284,5.0469,138.7,138.68,11.64]
[1720847619693,16.0894,138.73,138.68,11.64]
[1720847619874,25.0462,138.72,138.69,11.64]
[1720847620079,5.0468,138.71,138.65,16.5073]
[1720847620280,5.0468,138.71,138.67,11.64]
[1720847620495,20.0,138.7,138.67,11.64]
[1720847620795,25.0469,138.7,138.67,11.64]
[1720847624085,5.0469,138.7,138.65,16.5073]
[1720847624291,5.0469,138.7,138.66,11.64]
[1720847625785,5.0469,138.7,138.67,11.64]
[1720847625984,5.0466,138.71,138.67,11.64]
[1720847632108,11.64,138.72,138.68,13.07940359]
[1720847632109,5.0461,138.72,138.68,13.07940359]
[1720847632308,20.0,138.71,138.68,1.43940359]
[1720847632515,20.0,138.71,138.68,1.44198319]
[1720847633212,25.0466,138.71,138.68,1.44198319]
[1720847634691,20.0,138.71,138.68,13.08198319]
[1720847638512,5.0462,138.72,138.68,13.08198319]
[1720847640998,5.0458,138.73,138.68,13.08198319]
[1720847641312,20.0,138.72,138.68,13.08198319]
[1720847641704,25.0462,138.72,138.68,13.08198319]
[1720847647413,25.0462,138.72,138.68,1.44198319]
[1720847647617,25.0462,138.72,138.67,11.64]
[1720847648820,11.64,138.71,138.65,16.5073]
[1720847649021,11.64,138.71,138.65,28.1473]
[1720847649022,5.0465,138.71,138.65,28.1473]
[1720847649234,16.6865,138.71,138.66,11.64]
[1720847652618,5.047,138.7,138.66,11.64]
[1720847653124,16.687,138.7,138.65,28.1473]
[1720847656740,11.64,138.7,138.65,28.1473]
[1720847660057,11.64,138.68,138.65,16.5073]
[1720847662047,16.6877,138.68,138.65,16.5073]
[1720847662251,16.6877,138.68,138.62,6.3364]
[1720847662557,31.64,138.67,138.62,33.1454]
[1720847663938,20.0,138.67,138.62,33.1454]
[1720847664153,31.64,138.67,138.62,33.1454]
[1720847664731,20.0,138.67,138.63,11.64]
[1720847666652,20.0,138.67,138.62,21.5054]
[1720847666859,31.64,138.67,138.62,33.1454]
[1720847667354,31.64,138.67,138.63,0.45672753]
[1720847667534,20.0,138.67,138.63,0.45672753]
[1720847667735,20.0,138.67,138.62,21.5054]
[1720847668235,20.0,138.67,138.62,33.1454]
[1720847670562,16.6876,138.68,138.62,33.1454]
[1720847670767,20.0,138.67,138.62,33.1454]
[1720847671147,31.64,138.67,138.62,33.1454]
[1720847671749,36.688,138.67,138.62,21.5054]
[1720847674445,11.64,138.66,138.62,21.5054]
[1720847677071,25.048,138.67,138.62,21.5054]
[1720847677255,11.64,138.66,138.62,21.5054]
[1720847679157,20.0,138.67,138.62,21.5054]
[1720847679467,11.64,138.66,138.62,21.5054]
[1720847680962,20.0,138.67,138.62,21.5054]
[1720847681164,11.64,138.66,138.62,21.5054]
[1720847681864,20.0,138.67,138.62,21.5054]
[1720847682055,20.0,138.67,138.62,33.1454]
[1720847682257,31.64,138.67,138.62,33.1454]
[1720847683361,20.0,138.67,138.62,33.1454]
[1720847684167,20.0,138.67,138.63,1.44257497]
[1720847685673,20.0,138.67,138.62,33.1454]
[1720847686166,31.64,138.67,138.62,33.1454]
[1720847687143,36.688,138.67,138.62,33.1454]
[1720847688251,5.0485,138.66,138.62,21.5054]
[1720847688859,16.6885,138.66,138.62,21.5054]
[1720847691574,11.64,138.66,138.62,21.5054]
[1720847694078,20.0,138.67,138.62,21.5054]
[1720847694381,31.64,138.67,138.62,21.5054]
[1720847695564,20.0,138.67,138.62,21.5054]
[1720847695760,20.0,138.67,138.62,33.1454]
[1720847697584,34.14343178,138.72,138.64,11.64]
[1720847697772,16.6872,138.69,138.64,11.64]
[1720847698173,16.6872,138.69,138.63,11.64]
[1720847698766,16.6872,138.69,138.64,11.64]
[1720847698959,20.0,138.68,138.64,11.64]
[1720847699162,25.0476,138.68,138.64,11.64]
[1720847699677,20.0,138.68,138.64,11.64]
[1720847703289,25.0477,138.68,138.64,11.64]
[1720847703792,36.6877,138.68,138.63,11.64]
[1720847704085,36.6877,138.68,138.62,21.5054]
[1720847704386,36.6877,138.68,138.63,11.64]
[1720847705187,11.64,138.67,138.62,33.1454]
[1720847706286,11.64,138.67,138.62,21.5054]
[1720847706492,11.64,138.67,138.62,33.1454]
[1720847709372,20.0,138.68,138.63,11.64]
[1720847709572,20.0,138.68,138.64,11.64]
[1720847711774,25.0476,138.68,138.64,11.64]
[1720847713997,20.0,138.68,138.64,11.64]
[1720847714178,25.0472,138.69,138.65,11.64]
[1720847715799,25.0472,138.69,138.64,11.64]
[1720847716002,25.0472,138.69,138.65,11.64]
[1720847718106,25.0472,138.69,138.64,11.64]
[1720847719200,25.0472,138.69,138.65,13.0823185]
[1720847719505,25.0472,138.69,138.65,11.64]
[1720847720106,20.0,138.69,138.62,21.5054]
[1720847720306,5.0477,138.68,138.64,11.64]
[1720847723186,16.6873,138.69,138.64,11.64]
[1720847723385,20.0,138.68,138.64,11.64]
[1720847724087,20.0,138.68,138.65,11.64]
[1720847726087,20.0,138.69,138.65,11.64]
[1720847726710,20.0,138.69,138.66,11.64]
[1720847730311,25.0472,138.69,138.66,11.64]
[1720847733826,20.0,138.69,138.66,11.64]
[1720847734006,20.0,138.7,138.66,11.64]
[1720847734808,5.0472,138.69,138.66,11.64]
[1720847734998,20.0,138.68,138.66,11.64]
[1720847739611,20.0,138.68,138.63,1.44013297]
[1720847739803,5.0477,138.68,138.63,45.0]
[1720847740005,5.0477,138.68,138.65,11.64]
[1720847742200,5.0477,138.68,138.63,45.0]
[1720847742413,5.0477,138.68,138.65,11.64]
[1720847744121,5.0477,138.68,138.63,45.0]
[1720847744296,5.0477,138.68,138.65,11.64]
[1720847744815,5.0479,138.67,138.62,21.5054]
[1720847744992,5.0479,138.67,138.64,11.64]
[1720847745518,5.0479,138.67,138.63,11.64]
[1720847746417,11.64,138.68,138.58,21.6112]
[1720847746620,5.0487,138.65,138.58,21.6112]
[1720847746919,5.0483,138.66,138.62,11.64]
[1720847747224,5.0483,138.66,138.58,21.6112]
[1720847747407,5.0483,138.66,138.62,11.64]
[1720847748010,5.0487,138.65,138.62,11.64]
[1720847748211,5.0487,138.65,138.61,11.64]
[1720847750019,5.0483,138.66,138.62,12.71719458]
[1720847750321,5.0483,138.66,138.63,11.64]
[1720847750824,5.0483,138.66,138.62,11.64]
[1720847751521,5.048,138.67,138.62,11.64]
[1720847751719,20.0,138.66,138.62,11.64]
[1720847752101,25.0483,138.66,138.62,11.64]
[1720847753506,20.0,138.66,138.62,11.64]
[1720847754220,20.0,138.66,138.63,11.64]
[1720847755815,5.048,138.67,138.63,11.64]